[Event "January 2 Early 2024"]
[Site "https://www.chess.com"]
[Date "2024.01.02"]
[Round "2"]
[White "Chyngyz, Sultai"]
[Black "Biriukov, Ilja"]
[Result "0-1"]
[Board "236"]
[TimeControl "180+1"]
[WhiteFideId "13803158"]
[BlackFideId "4113373"]
[WhiteElo "2451"]
[BlackElo "2158"]
[WhiteTeam "KGZ"]
[BlackTeam "RUS"]
[WhiteClock "0:01:45"]
[BlackClock "0:00:56"]

1. e4 {[%clk 0:03:00]}  e6 {[%clk 0:02:57]} 2. d4 {[%clk 0:03:00]}  d5 {[%clk 0:02:58]} 3. exd5 {[%clk 0:03:00]}  exd5 {[%clk 0:02:57]} 4. Nf3 {[%clk 0:03:01]}  Bg4 {[%clk 0:02:57]} 5. Be2 {[%clk 0:03:01]}  Bd6 {[%clk 0:02:56]} 6. O-O {[%clk 0:03:01]}  Ne7 {[%clk 0:02:55]} 7. h3 {[%clk 0:03:01]}  Bh5 {[%clk 0:02:54]} 8. Be3 {[%clk 0:03:01]}  Nbc6 {[%clk 0:02:53]} 9. Nbd2 {[%clk 0:03:01]}  f6 {[%clk 0:02:52]} 10. c3 {[%clk 0:03:02]}  Qd7 {[%clk 0:02:52]} 11. Qc2 {[%clk 0:03:02]}  g5 {[%clk 0:02:51]} 12. c4 {[%clk 0:03:00]}  O-O-O {[%clk 0:02:47]} 13. cxd5 {[%clk 0:02:57]}  Nxd5 {[%clk 0:02:46]} 14. Bd3 {[%clk 0:02:56]}  Bg6 {[%clk 0:02:26]} 15. a3 {[%clk 0:02:53]}  Nf4 {[%clk 0:02:19]} 16. Bxf4 {[%clk 0:02:42]}  Bxf4 {[%clk 0:02:11]} 17. Rac1 {[%clk 0:02:33]}  g4 {[%clk 0:02:00]} 18. hxg4 {[%clk 0:02:32]}  Qxg4 {[%clk 0:02:01]} 19. Ne4 {[%clk 0:02:21]}  Rhg8 {[%clk 0:01:33]} 20. Nxf6 {[%clk 0:02:18]}  Qxf3 {[%clk 0:01:19]} 21. Nxg8 {[%clk 0:02:05]}  Bxd3 {[%clk 0:01:15]} 22. Qc5 {[%clk 0:01:52]}  Rxg8 {[%clk 0:01:05]} 23. g3 {[%clk 0:01:48]}  Be4 {[%clk 0:00:56]} 24. Kh2 {[%clk 0:01:45]} 0-1

[Event "January 2 Early 2024"]
[Site "https://www.chess.com"]
[Date "2024.01.02"]
[Round "2"]
[White "Petersson, Kjell"]
[Black "Kostic, Vladimir V"]
[Result "0-1"]
[Board "237"]
[TimeControl "180+1"]
[WhiteFideId "1705148"]
[BlackFideId "903620"]
[WhiteElo "2158"]
[BlackElo "2450"]
[WhiteTeam "SWE"]
[BlackTeam "SRB"]
[WhiteClock "0:00:30"]
[BlackClock "0:00:45"]

1. d4 {[%clk 0:03:00]}  d5 {[%clk 0:02:59]} 2. Bf4 {[%clk 0:03:01]}  Nf6 {[%clk 0:02:58]} 3. e3 {[%clk 0:03:01]}  c5 {[%clk 0:02:59]} 4. Nd2 {[%clk 0:03:00]}  Nc6 {[%clk 0:02:58]} 5. c3 {[%clk 0:02:59]}  Qb6 {[%clk 0:02:58]} 6. Qb3 {[%clk 0:02:58]}  c4 {[%clk 0:02:58]} 7. Qc2 {[%clk 0:02:58]}  Bg4 {[%clk 0:02:57]} 8. f3 {[%clk 0:02:50]}  Bh5 {[%clk 0:02:57]} 9. e4 {[%clk 0:02:50]}  e6 {[%clk 0:02:57]} 10. Ne2 {[%clk 0:02:32]}  Bg6 {[%clk 0:02:50]} 11. Ng3 {[%clk 0:02:31]}  Be7 {[%clk 0:02:48]} 12. Be2 {[%clk 0:02:30]}  O-O {[%clk 0:02:45]} 13. O-O {[%clk 0:02:30]}  e5 {[%clk 0:02:36]} 14. Be3 {[%clk 0:02:27]}  exd4 {[%clk 0:02:34]} 15. cxd4 {[%clk 0:02:20]}  Nxd4 {[%clk 0:02:34]} 16. Qc3 {[%clk 0:02:14]}  Bc5 {[%clk 0:02:17]} 17. Bf2 {[%clk 0:01:56]}  Nh5 {[%clk 0:02:07]} 18. Bxc4 {[%clk 0:01:41]}  dxc4 {[%clk 0:01:54]} 19. Nxc4 {[%clk 0:01:41]}  Nxg3 {[%clk 0:01:46]} 20. hxg3 {[%clk 0:01:33]}  Ne2+ {[%clk 0:01:43]} 21. Kh1 {[%clk 0:01:29]}  Nxc3 {[%clk 0:01:36]} 22. Nxb6 {[%clk 0:01:29]}  Bxb6 {[%clk 0:01:31]} 23. bxc3 {[%clk 0:01:24]}  f5 {[%clk 0:01:25]} 24. e5 {[%clk 0:01:20]}  Bf7 {[%clk 0:01:23]} 25. Bd4 {[%clk 0:01:12]}  Rfd8 {[%clk 0:01:19]} 26. Rfd1 {[%clk 0:01:10]}  Be6 {[%clk 0:01:11]} 27. f4 {[%clk 0:01:09]}  Kf8 {[%clk 0:01:11]} 28. a4 {[%clk 0:01:03]}  Bxd4 {[%clk 0:00:55]} 29. cxd4 {[%clk 0:01:03]}  Bd5 {[%clk 0:00:55]} 30. Rab1 {[%clk 0:01:00]}  Rac8 {[%clk 0:00:53]} 31. Kh2 {[%clk 0:00:41]}  Rc2 {[%clk 0:00:52]} 32. Rg1 {[%clk 0:00:42]}  Rdc8 {[%clk 0:00:51]} 33. Kh3 {[%clk 0:00:40]}  R8c6 {[%clk 0:00:49]} 34. g4 {[%clk 0:00:30]}  R2c3+ {[%clk 0:00:45]} 0-1

[Event "January 2 Early 2024"]
[Site "https://www.chess.com"]
[Date "2024.01.02"]
[Round "2"]
[White "Chandra, Vania Vindy"]
[Black "Gatterer, Florian"]
[Result "0-1"]
[Board "238"]
[TimeControl "180+1"]
[WhiteFideId "7103441"]
[BlackFideId "811688"]
[WhiteElo "2153"]
[BlackElo "2448"]
[WhiteTeam "INA"]
[BlackTeam "ITA"]
[WhiteClock "0:00:00"]
[BlackClock "0:00:12"]

1. d4 {[%clk 0:03:00]}  Nf6 {[%clk 0:02:59]} 2. c4 {[%clk 0:02:59]}  g6 {[%clk 0:02:59]} 3. Nc3 {[%clk 0:02:59]}  d5 {[%clk 0:03:00]} 4. cxd5 {[%clk 0:02:59]}  Nxd5 {[%clk 0:03:00]} 5. e4 {[%clk 0:03:00]}  Nxc3 {[%clk 0:03:01]} 6. bxc3 {[%clk 0:03:00]}  Bg7 {[%clk 0:03:01]} 7. Be3 {[%clk 0:03:01]}  c5 {[%clk 0:03:01]} 8. Bb5+ {[%clk 0:03:01]}  Bd7 {[%clk 0:02:58]} 9. Bxd7+ {[%clk 0:03:01]}  Qxd7 {[%clk 0:02:50]} 10. Ne2 {[%clk 0:03:01]}  cxd4 {[%clk 0:02:48]} 11. cxd4 {[%clk 0:03:01]}  O-O {[%clk 0:02:46]} 12. O-O {[%clk 0:02:59]}  e6 {[%clk 0:02:47]} 13. Rb1 {[%clk 0:02:59]}  Nc6 {[%clk 0:02:46]} 14. d5 {[%clk 0:02:53]}  exd5 {[%clk 0:02:42]} 15. exd5 {[%clk 0:02:52]}  Ne5 {[%clk 0:02:32]} 16. Qb3 {[%clk 0:02:48]}  b6 {[%clk 0:02:31]} 17. Rfd1 {[%clk 0:02:46]}  Rfe8 {[%clk 0:02:17]} 18. Nf4 {[%clk 0:02:22]}  Ng4 {[%clk 0:02:09]} 19. Bd4 {[%clk 0:02:17]}  Bxd4 {[%clk 0:02:08]} 20. Rxd4 {[%clk 0:02:16]}  Qe7 {[%clk 0:01:48]} 21. Rdd1 {[%clk 0:02:05]}  Qg5 {[%clk 0:01:44]} 22. Qg3 {[%clk 0:02:00]}  Qf5 {[%clk 0:01:19]} 23. h3 {[%clk 0:01:46]}  Nf6 {[%clk 0:01:19]} 24. Qf3 {[%clk 0:01:37]}  Rad8 {[%clk 0:01:11]} 25. d6 {[%clk 0:01:30]}  Re4 {[%clk 0:01:08]} 26. g3 {[%clk 0:00:46]}  g5 {[%clk 0:00:58]} 27. a4 {[%clk 0:00:30]}  gxf4 {[%clk 0:00:47]} 28. g4 {[%clk 0:00:28]}  Qe6 {[%clk 0:00:41]} 29. g5 {[%clk 0:00:25]}  Nd7 {[%clk 0:00:33]} 30. Rb5 {[%clk 0:00:19]}  Nc5 {[%clk 0:00:30]} 31. a5 {[%clk 0:00:16]}  Rxd6 {[%clk 0:00:27]} 32. Rxd6 {[%clk 0:00:15]}  Qxd6 {[%clk 0:00:27]} 33. axb6 {[%clk 0:00:09]}  axb6 {[%clk 0:00:26]} 34. Kh2 {[%clk 0:00:08]}  Qe6 {[%clk 0:00:19]} 35. Rb2 {[%clk 0:00:05]}  Qf5 {[%clk 0:00:17]} 36. Rb1 {[%clk 0:00:04]}  Re3 {[%clk 0:00:15]} 37. fxe3 {[%clk 0:00:04]}  Qxb1 {[%clk 0:00:15]} 38. exf4 {[%clk 0:00:04]}  Qc2+ {[%clk 0:00:14]} 39. Kg1 {[%clk 0:00:03]}  Qd3 {[%clk 0:00:13]} 40. Qg4 {[%clk 0:00:03]}  Qe3+ {[%clk 0:00:12]} 41. Kh1 {[%clk 0:00:00]}  Ne4 {[%clk 0:00:12]} 0-1

[Event "January 2 Early 2024"]
[Site "https://www.chess.com"]
[Date "2024.01.02"]
[Round "2"]
[White "Mohammadi, Melika"]
[Black "Mende, Andreas"]
[Result "1-0"]
[Board "239"]
[TimeControl "180+1"]
[WhiteFideId "42529271"]
[BlackFideId "4631102"]
[WhiteElo "2446"]
[BlackElo "2150"]
[WhiteTeam "IRI"]
[BlackTeam "GER"]
[WhiteClock "0:00:07"]
[BlackClock "0:00:51"]

1. e4 {[%clk 0:03:00]}  c5 {[%clk 0:02:59]} 2. Nf3 {[%clk 0:03:00]}  Nc6 {[%clk 0:02:59]} 3. d4 {[%clk 0:03:01]}  cxd4 {[%clk 0:02:59]} 4. Nxd4 {[%clk 0:03:02]}  Nf6 {[%clk 0:02:59]} 5. Nc3 {[%clk 0:03:00]}  e5 {[%clk 0:02:59]} 6. Ndb5 {[%clk 0:03:00]}  d6 {[%clk 0:02:58]} 7. Nd5 {[%clk 0:03:01]}  Nxd5 {[%clk 0:02:57]} 8. exd5 {[%clk 0:03:02]}  Nb8 {[%clk 0:02:57]} 9. a4 {[%clk 0:02:59]}  Be7 {[%clk 0:02:55]} 10. Be2 {[%clk 0:02:58]}  O-O {[%clk 0:02:54]} 11. Bd2 {[%clk 0:02:57]}  a6 {[%clk 0:02:50]} 12. Na3 {[%clk 0:02:55]}  f5 {[%clk 0:02:50]} 13. Nc4 {[%clk 0:02:54]}  Nd7 {[%clk 0:02:40]} 14. Bb4 {[%clk 0:02:53]}  Nc5 {[%clk 0:02:27]} 15. Bxc5 {[%clk 0:02:47]}  dxc5 {[%clk 0:02:26]} 16. d6 {[%clk 0:02:47]}  Bf6 {[%clk 0:02:25]} 17. Qd5+ {[%clk 0:02:46]}  Kh8 {[%clk 0:02:23]} 18. O-O {[%clk 0:02:37]}  Rb8 {[%clk 0:02:19]} 19. Qxc5 {[%clk 0:02:22]}  Bd7 {[%clk 0:02:07]} 20. Nb6 {[%clk 0:02:11]}  Bc6 {[%clk 0:02:05]} 21. Rad1 {[%clk 0:02:02]}  e4 {[%clk 0:02:04]} 22. b4 {[%clk 0:01:58]}  f4 {[%clk 0:01:57]} 23. f3 {[%clk 0:01:39]}  e3 {[%clk 0:01:54]} 24. b5 {[%clk 0:01:38]}  axb5 {[%clk 0:01:52]} 25. axb5 {[%clk 0:01:38]}  Bd7 {[%clk 0:01:52]} 26. Qc7 {[%clk 0:01:23]}  Be6 {[%clk 0:01:31]} 27. Nd5 {[%clk 0:01:19]}  Bxd5 {[%clk 0:01:28]} 28. Rxd5 {[%clk 0:01:17]}  Rc8 {[%clk 0:01:27]} 29. Qxd8 {[%clk 0:01:14]}  Rfxd8 {[%clk 0:01:26]} 30. c4 {[%clk 0:01:13]}  b6 {[%clk 0:01:19]} 31. Rfd1 {[%clk 0:01:12]}  Rc5 {[%clk 0:01:16]} 32. Rxc5 {[%clk 0:00:49]}  bxc5 {[%clk 0:01:16]} 33. d7 {[%clk 0:00:46]}  Kg8 {[%clk 0:01:13]} 34. b6 {[%clk 0:00:37]}  Bd4 {[%clk 0:01:12]} 35. b7 {[%clk 0:00:36]}  Kf7 {[%clk 0:01:10]} 36. Rb1 {[%clk 0:00:32]}  Be5 {[%clk 0:01:10]} 37. Rb5 {[%clk 0:00:11]}  Ke6 {[%clk 0:01:03]} 38. Rxc5 {[%clk 0:00:08]}  Rxd7 {[%clk 0:00:58]} 39. Rxe5+ {[%clk 0:00:08]}  Kxe5 {[%clk 0:00:57]} 40. b8=Q+ {[%clk 0:00:09]}  Ke6 {[%clk 0:00:57]} 41. Qxf4 {[%clk 0:00:06]}  Rf7 {[%clk 0:00:56]} 42. Qxe3+ {[%clk 0:00:07]}  Kd7 {[%clk 0:00:55]} 43. Bd3 {[%clk 0:00:07]}  Re7 {[%clk 0:00:56]} 44. Qd4+ {[%clk 0:00:07]}  Ke8 {[%clk 0:00:56]} 45. c5 {[%clk 0:00:08]}  Rd7 {[%clk 0:00:55]} 46. Bb5 {[%clk 0:00:07]}  Kf8 {[%clk 0:00:51]} 47. Qxd7 {[%clk 0:00:07]} 1-0

[Event "January 2 Early 2024"]
[Site "https://www.chess.com"]
[Date "2024.01.02"]
[Round "2"]
[White "Dahlgren, James Allen"]
[Black "Omariev, Maksim"]
[Result "0-1"]
[Board "249"]
[TimeControl "180+1"]
[WhiteFideId "22256873"]
[BlackFideId "4193423"]
[WhiteElo "2109"]
[BlackElo "2422"]
[WhiteTeam "ESP"]
[BlackTeam "RUS"]
[WhiteClock "0:00:08"]
[BlackClock "0:00:03"]

1. d3 {[%clk 0:03:00]}  d5 {[%clk 0:02:35]} 2. f4 {[%clk 0:03:01]}  c5 {[%clk 0:02:35]} 3. Nf3 {[%clk 0:03:00]}  Nf6 {[%clk 0:02:34]} 4. Nbd2 {[%clk 0:03:00]}  Bf5 {[%clk 0:02:33]} 5. h3 {[%clk 0:02:59]}  h6 {[%clk 0:02:33]} 6. g4 {[%clk 0:02:59]}  Bh7 {[%clk 0:02:33]} 7. Bg2 {[%clk 0:02:59]}  Nc6 {[%clk 0:02:33]} 8. O-O {[%clk 0:03:00]}  e6 {[%clk 0:02:32]} 9. c3 {[%clk 0:02:58]}  Bd6 {[%clk 0:02:28]} 10. e3 {[%clk 0:02:50]}  Qc7 {[%clk 0:02:24]} 11. Qe2 {[%clk 0:02:49]}  O-O-O {[%clk 0:02:24]} 12. a3 {[%clk 0:02:48]}  g5 {[%clk 0:02:09]} 13. fxg5 {[%clk 0:02:45]}  hxg5 {[%clk 0:02:10]} 14. Nxg5 {[%clk 0:02:45]}  Be5 {[%clk 0:01:06]} 15. d4 {[%clk 0:02:32]}  Bh2+ {[%clk 0:01:03]} 16. Kh1 {[%clk 0:02:32]}  Ne4 {[%clk 0:01:04]} 17. Ndxe4 {[%clk 0:02:24]}  Bxe4 {[%clk 0:01:04]} 18. Nxe4 {[%clk 0:02:03]}  dxe4 {[%clk 0:01:01]} 19. b4 {[%clk 0:01:52]}  cxb4 {[%clk 0:00:45]} 20. axb4 {[%clk 0:01:46]}  Kb8 {[%clk 0:00:46]} 21. b5 {[%clk 0:01:42]}  Na5 {[%clk 0:00:22]} 22. Rxa5 {[%clk 0:01:33]}  Qxa5 {[%clk 0:00:23]} 23. Kxh2 {[%clk 0:01:32]}  Qxc3 {[%clk 0:00:22]} 24. Bd2 {[%clk 0:01:29]}  Qc7+ {[%clk 0:00:22]} 25. Kg1 {[%clk 0:01:24]}  Rdf8 {[%clk 0:00:20]} 26. Rc1 {[%clk 0:01:03]}  Qd6 {[%clk 0:00:18]} 27. Qe1 {[%clk 0:00:52]}  Rfg8 {[%clk 0:00:15]} 28. Bb4 {[%clk 0:00:49]}  Qd7 {[%clk 0:00:15]} 29. Qg3+ {[%clk 0:00:48]}  Ka8 {[%clk 0:00:15]} 30. b6 {[%clk 0:00:36]}  f5 {[%clk 0:00:09]} 31. g5 {[%clk 0:00:28]}  Qb5 {[%clk 0:00:08]} 32. Bc5 {[%clk 0:00:22]}  a6 {[%clk 0:00:08]} 33. h4 {[%clk 0:00:21]}  Qe2 {[%clk 0:00:06]} 34. Qf2 {[%clk 0:00:20]}  Qg4 {[%clk 0:00:06]} 35. Qf4 {[%clk 0:00:17]}  Rxh4 {[%clk 0:00:04]} 36. Qxg4 {[%clk 0:00:17]}  Rxg4 {[%clk 0:00:05]} 37. Be7 {[%clk 0:00:17]}  Rg3 {[%clk 0:00:01]} 38. Kf2 {[%clk 0:00:17]}  Rg4 {[%clk 0:00:02]} 39. Bh3 {[%clk 0:00:17]}  Rh4 {[%clk 0:00:02]} 40. Kg3 {[%clk 0:00:17]}  Rh7 {[%clk 0:00:02]} 41. Bg2 {[%clk 0:00:18]}  Rxe7 {[%clk 0:00:02]} 42. Kf4 {[%clk 0:00:17]}  Reg7 {[%clk 0:00:02]} 43. Ke5 {[%clk 0:00:13]}  Rxg5 {[%clk 0:00:03]} 44. Kxe6 {[%clk 0:00:08]}  Rxg2 {[%clk 0:00:03]} 0-1

[Event "January 2 Early 2024"]
[Site "https://www.chess.com"]
[Date "2024.01.02"]
[Round "2"]
[White "Mayaud, Raphael"]
[Black "Brandao, Marcius Gomes"]
[Result "1-0"]
[Board "252"]
[TimeControl "180+1"]
[WhiteFideId "627151"]
[BlackFideId "2124980"]
[WhiteElo "2419"]
[BlackElo "2061"]
[WhiteTeam "FRA"]
[BlackTeam "BRA"]
[WhiteClock "0:01:46"]
[BlackClock "0:00:30"]

1. d4 {[%clk 0:03:00]}  d5 {[%clk 0:02:59]} 2. Nf3 {[%clk 0:03:00]}  Nf6 {[%clk 0:02:58]} 3. c4 {[%clk 0:03:00]}  e6 {[%clk 0:02:58]} 4. g3 {[%clk 0:03:00]}  Be7 {[%clk 0:02:43]} 5. Bg2 {[%clk 0:02:46]}  O-O {[%clk 0:02:43]} 6. O-O {[%clk 0:02:46]}  c6 {[%clk 0:02:43]} 7. Qc2 {[%clk 0:02:46]}  Nbd7 {[%clk 0:02:42]} 8. Rd1 {[%clk 0:02:46]}  b6 {[%clk 0:02:36]} 9. b3 {[%clk 0:02:32]}  Ba6 {[%clk 0:02:30]} 10. Bb2 {[%clk 0:02:31]}  Rc8 {[%clk 0:02:30]} 11. Nbd2 {[%clk 0:02:27]}  h6 {[%clk 0:02:29]} 12. e4 {[%clk 0:02:24]}  Qc7 {[%clk 0:01:56]} 13. Rac1 {[%clk 0:02:21]}  dxe4 {[%clk 0:01:37]} 14. Nxe4 {[%clk 0:02:20]}  Nxe4 {[%clk 0:01:38]} 15. Qxe4 {[%clk 0:02:20]}  c5 {[%clk 0:01:29]} 16. d5 {[%clk 0:02:09]}  Bb7 {[%clk 0:01:17]} 17. Qe2 {[%clk 0:01:59]}  e5 {[%clk 0:00:36]} 18. Nxe5 {[%clk 0:01:49]}  Nxe5 {[%clk 0:00:35]} 19. Qxe5 {[%clk 0:01:48]}  Bd6 {[%clk 0:00:30]} 20. Qxg7# {[%clk 0:01:46]} 1-0

[Event "January 2 Early 2024"]
[Site "https://www.chess.com"]
[Date "2024.01.02"]
[Round "2"]
[White "Alivodic, Dario"]
[Black "Quirke, Jeffrey"]
[Result "1-0"]
[Board "253"]
[TimeControl "180+1"]
[WhiteFideId "16501632"]
[BlackFideId "2013029"]
[WhiteElo "2414"]
[BlackElo "2037"]
[WhiteTeam "MNE"]
[BlackTeam "USA"]
[WhiteClock "0:01:26"]
[BlackClock "0:00:56"]

1. d4 {[%clk 0:03:00]}  Nf6 {[%clk 0:02:58]} 2. c4 {[%clk 0:03:00]}  g6 {[%clk 0:02:58]} 3. Nc3 {[%clk 0:02:59]}  Bg7 {[%clk 0:02:58]} 4. e4 {[%clk 0:02:59]}  d6 {[%clk 0:02:57]} 5. Nge2 {[%clk 0:02:59]}  O-O {[%clk 0:02:57]} 6. Ng3 {[%clk 0:03:00]}  c5 {[%clk 0:02:54]} 7. d5 {[%clk 0:03:00]}  e6 {[%clk 0:02:47]} 8. Be2 {[%clk 0:02:58]}  exd5 {[%clk 0:02:46]} 9. exd5 {[%clk 0:02:58]}  Re8 {[%clk 0:02:36]} 10. O-O {[%clk 0:02:57]}  h5 {[%clk 0:02:33]} 11. Bg5 {[%clk 0:02:57]}  Nbd7 {[%clk 0:02:32]} 12. Qd2 {[%clk 0:02:57]}  Qa5 {[%clk 0:02:25]} 13. h3 {[%clk 0:02:55]}  Nh7 {[%clk 0:02:19]} 14. Bf4 {[%clk 0:02:55]}  Ne5 {[%clk 0:02:19]} 15. Bh6 {[%clk 0:02:51]}  a6 {[%clk 0:02:01]} 16. Bxg7 {[%clk 0:02:47]}  Kxg7 {[%clk 0:02:01]} 17. f4 {[%clk 0:02:48]}  Nd7 {[%clk 0:01:56]} 18. f5 {[%clk 0:02:47]}  Ne5 {[%clk 0:01:51]} 19. Bxh5 {[%clk 0:01:40]}  gxh5 {[%clk 0:01:51]} 20. Nxh5+ {[%clk 0:01:40]}  Kh8 {[%clk 0:01:47]} 21. Qh6 {[%clk 0:01:38]}  Rg8 {[%clk 0:01:43]} 22. Nf6 {[%clk 0:01:28]}  Rg7 {[%clk 0:00:56]} 23. Nxh7 {[%clk 0:01:26]} 1-0

[Event "January 2 Early 2024"]
[Site "https://www.chess.com"]
[Date "2024.01.02"]
[Round "2"]
[White "VictMin"]
[Black "Marcziter, Dmitrii"]
[Result "1-0"]
[Board "256"]
[TimeControl "180+1"]
[BlackFideId "13900765"]
[WhiteElo "2016"]
[BlackElo "2408"]
[BlackTeam "GER"]
[WhiteClock "0:00:14"]
[BlackClock "0:00:05"]

1. Nf3 {[%clk 0:03:00]}  Nf6 {[%clk 0:02:46]} 2. d4 {[%clk 0:03:00]}  g6 {[%clk 0:02:45]} 3. Bg5 {[%clk 0:03:00]}  Bg7 {[%clk 0:02:46]} 4. Nbd2 {[%clk 0:03:00]}  d5 {[%clk 0:02:46]} 5. e3 {[%clk 0:03:00]}  O-O {[%clk 0:02:44]} 6. Bd3 {[%clk 0:03:00]}  c5 {[%clk 0:02:43]} 7. c3 {[%clk 0:03:00]}  b6 {[%clk 0:02:41]} 8. Qe2 {[%clk 0:02:59]}  Bb7 {[%clk 0:02:41]} 9. O-O {[%clk 0:03:00]}  Nbd7 {[%clk 0:02:41]} 10. Rfe1 {[%clk 0:02:58]}  h6 {[%clk 0:02:39]} 11. Bh4 {[%clk 0:02:58]}  Rc8 {[%clk 0:02:32]} 12. Rad1 {[%clk 0:02:58]}  Re8 {[%clk 0:02:30]} 13. Bb5 {[%clk 0:02:57]}  g5 {[%clk 0:02:23]} 14. Bg3 {[%clk 0:02:57]}  Nh5 {[%clk 0:02:23]} 15. Be5 {[%clk 0:02:45]}  f6 {[%clk 0:02:19]} 16. Bg3 {[%clk 0:02:44]}  Nxg3 {[%clk 0:02:18]} 17. hxg3 {[%clk 0:02:44]}  e5 {[%clk 0:02:15]} 18. dxe5 {[%clk 0:02:24]}  fxe5 {[%clk 0:02:13]} 19. e4 {[%clk 0:02:23]}  d4 {[%clk 0:02:10]} 20. Qc4+ {[%clk 0:02:06]}  Kh8 {[%clk 0:02:06]} 21. Qf7 {[%clk 0:02:04]}  Re7 {[%clk 0:02:04]} 22. Qh5 {[%clk 0:02:00]}  Qe8 {[%clk 0:02:02]} 23. Qxe8+ {[%clk 0:01:56]}  Rcxe8 {[%clk 0:02:01]} 24. Nc4 {[%clk 0:01:45]}  a6 {[%clk 0:01:53]} 25. Bxd7 {[%clk 0:01:43]}  Rxd7 {[%clk 0:01:52]} 26. Nxb6 {[%clk 0:01:42]}  Rde7 {[%clk 0:01:49]} 27. c4 {[%clk 0:01:29]}  Bc6 {[%clk 0:01:44]} 28. Nd5 {[%clk 0:01:27]}  Rb7 {[%clk 0:01:44]} 29. b3 {[%clk 0:01:26]}  a5 {[%clk 0:01:44]} 30. Rb1 {[%clk 0:01:25]}  Reb8 {[%clk 0:01:41]} 31. Nd2 {[%clk 0:01:23]}  Kg8 {[%clk 0:01:36]} 32. Kf1 {[%clk 0:01:21]}  Kf7 {[%clk 0:01:36]} 33. Ke2 {[%clk 0:01:21]}  Ke6 {[%clk 0:01:36]} 34. Kd3 {[%clk 0:01:20]}  Bf8 {[%clk 0:01:33]} 35. f3 {[%clk 0:01:20]}  Bd6 {[%clk 0:01:30]} 36. g4 {[%clk 0:01:20]}  a4 {[%clk 0:01:24]} 37. bxa4 {[%clk 0:01:16]}  Bxa4 {[%clk 0:01:21]} 38. Rxb7 {[%clk 0:01:15]}  Rxb7 {[%clk 0:01:21]} 39. Rb1 {[%clk 0:01:15]}  Ra7 {[%clk 0:01:11]} 40. Rb2 {[%clk 0:01:09]}  Bc7 {[%clk 0:01:02]} 41. Nb3 {[%clk 0:01:06]}  Bd6 {[%clk 0:01:00]} 42. Nb6 {[%clk 0:00:47]}  Bc6 {[%clk 0:00:49]} 43. Nd5 {[%clk 0:00:43]}  Ba4 {[%clk 0:00:48]} 44. Rb1 {[%clk 0:00:42]}  Rh7 {[%clk 0:00:46]} 45. Na5 {[%clk 0:00:35]}  Ra7 {[%clk 0:00:42]} 46. Nb3 {[%clk 0:00:35]}  Be8 {[%clk 0:00:41]} 47. Rb2 {[%clk 0:00:34]}  h5 {[%clk 0:00:40]} 48. gxh5 {[%clk 0:00:32]}  Bxh5 {[%clk 0:00:40]} 49. g4 {[%clk 0:00:32]}  Be8 {[%clk 0:00:40]} 50. Rh2 {[%clk 0:00:32]}  Bf8 {[%clk 0:00:32]} 51. Rh8 {[%clk 0:00:29]}  Kf7 {[%clk 0:00:30]} 52. Rh7+ {[%clk 0:00:27]}  Bg7 {[%clk 0:00:31]} 53. Nxc5 {[%clk 0:00:22]}  Kg8 {[%clk 0:00:28]} 54. Rh2 {[%clk 0:00:20]}  Bf8 {[%clk 0:00:22]} 55. Nb3 {[%clk 0:00:20]}  Ba3 {[%clk 0:00:18]} 56. c5 {[%clk 0:00:20]}  Bc6 {[%clk 0:00:15]} 57. Nf6+ {[%clk 0:00:16]}  Kf7 {[%clk 0:00:14]} 58. Rh7+ {[%clk 0:00:16]}  Kxf6 {[%clk 0:00:14]} 59. Rxa7 {[%clk 0:00:16]}  Bb5+ {[%clk 0:00:14]} 60. Kc2 {[%clk 0:00:16]}  Bc4 {[%clk 0:00:14]} 61. Rxa3 {[%clk 0:00:16]}  Ke6 {[%clk 0:00:14]} 62. Ra7 {[%clk 0:00:14]}  Be2 {[%clk 0:00:13]} 63. Nd2 {[%clk 0:00:14]}  d3+ {[%clk 0:00:11]} 64. Kc3 {[%clk 0:00:14]}  Kf6 {[%clk 0:00:11]} 65. c6 {[%clk 0:00:15]}  Ke6 {[%clk 0:00:12]} 66. c7 {[%clk 0:00:15]}  Kd7 {[%clk 0:00:12]} 67. Kb4 {[%clk 0:00:15]}  Bd1 {[%clk 0:00:12]} 68. Kc5 {[%clk 0:00:14]}  Ba4 {[%clk 0:00:12]} 69. Kb6 {[%clk 0:00:14]}  Bc2 {[%clk 0:00:05]} 70. Ra8 {[%clk 0:00:14]} 1-0